fUST/lending_fUST_20260324
["ID","MTS","AMOUNT","RATE_DAILY","PERIOD"]
[408809559,1774285874368,-154.0,0.00038381,120]
[408809561,1774285874392,-250.60041065,0.00038389,60]
[408809563,1774285874415,-1020000.80985765,0.00038398,120]
[408809565,1774285874440,-1103.28,0.00038405,120]
[408809567,1774285874465,-1103.28,0.00038505,120]
[408809569,1774285874490,-1103.28,0.00038605,120]
[408809571,1774285874515,-205.0,0.000387,120]
[408809573,1774285874541,-1103.28,0.00038705,120]
[408809575,1774285874566,-451.06,0.000388,120]
[408809577,1774285874590,-268.52,0.000388,120]
[408809579,1774285874615,-1103.28,0.00038805,120]
[408809580,1774285874641,-1500.0,0.000389,120]
[408809582,1774285874665,-1735.40389911,0.000389,120]
[408809584,1774285874688,-1229.88256057,0.000389,120]
[408809586,1774285874712,-2777.7,0.000389,120]
[408809588,1774285874738,-1103.28,0.00038905,120]
[408809590,1774285874762,-2000.0,0.00039,120]
[408809592,1774285874785,-150.0,0.00039,120]
[408809594,1774285874808,-5443.21893731,0.00039,120]
[408809596,1774285874832,-1000.0,0.00039,120]
[408809598,1774285874855,-17247.72389689,0.00039,120]
[408809599,1774285874879,-1186.04516849,0.00039,120]
[408809601,1774285874902,-2244.00563223,0.00039,120]
[408809603,1774285874928,-1103.28,0.00039005,120]
[408809605,1774285874953,-644.16543384,0.00039021,120]
[408809607,1774285874977,-6738.7,0.00039028,30]
[408809609,1774285875003,-1103.28,0.00039105,120]
[408809611,1774285875032,-205.0,0.000392,120]
[408809613,1774285875056,-2156.0,0.000392,120]
[408809615,1774285875083,-1103.28,0.00039205,120]
[408809617,1774285875109,-281.95,0.000393,120]
[408809619,1774285875133,-473.61,0.000393,120]
[408809620,1774285875157,-2498.0,0.000393,120]
[408809622,1774285875183,-1103.28,0.00039305,120]
[408809624,1774285875207,-154.0,0.00039381,120]
[408809626,1774285875232,-1103.28,0.00039405,120]
[408809628,1774285875257,-8513.27633097,0.000395,120]
[408809630,1774285875281,-2320.0,0.000395,120]
[408809632,1774285875308,-1103.28,0.00039505,120]
[408809634,1774285875334,-205.0,0.000396,120]
[408809636,1774285875360,-1103.28,0.00039605,120]
[408809638,1774285875387,-1103.28,0.00039705,120]
[408809640,1774285875411,-296.05,0.000398,120]
[408809642,1774285875435,-497.29,0.000398,120]
[408809644,1774285875458,-1500.0,0.000399,120]
[408809646,1774285875482,-2777.7,0.000399,120]
[408809648,1774285875508,-1103.28,0.00039905,120]
[408809650,1774285875533,-2237.41553562,0.00039975,120]
[408809652,1774285875559,-500.0,0.0004,120]
[408809654,1774285875583,-1000.0,0.0004,30]
[408809656,1774285875607,-1690688.24675065,0.0004,120]
[408809658,1774285875630,-150.0,0.0004,120]
[408809660,1774285875653,-150.0,0.0004,120]
[408809662,1774285875676,-150.0,0.0004,120]
[408809663,1774285875698,-257361.23337441,0.0004,120]
[408809665,1774285875722,-1148.41077877,0.0004,30]
[408809667,1774285875746,-1000.0,0.0004,120]
[408809669,1774285875770,-10814.93791533,0.0004,120]
[408809671,1774285875794,-140513.45549006,0.0004,120]
[408809673,1774285875821,-11199.0,0.0004,120]
[408809675,1774285875846,-877617.75116048,0.0004,120]
[408811293,1774285926650,18248.0,0.00033382,10]
[408811553,1774285959216,5000.0,0.00033382,10]
[408811659,1774285967942,250.3,0.00033382,120]
[408812223,1774286029014,-5000.0,0.00032877,120]
[408812224,1774286029039,-181.19986646,0.000329,120]
[408812225,1774286029063,-177.40826496,0.000329,120]
[408812226,1774286029089,-694.16155965,0.000329,120]
[408812227,1774286029113,-765.26025992,0.000329,120]
[408812228,1774286029136,-160.72851894,0.000329,120]
[408812229,1774286029160,-163.08944677,0.000329,120]
[408812230,1774286029183,-165.95252952,0.000329,120]
[408812231,1774286029206,-167.6707706,0.000329,120]
[408812232,1774286029391,-215.74,0.000333,120]
[408812233,1774286029418,-158.22,0.000333,120]
[408812234,1774286029443,-659.0,0.00033382,90]
[408812235,1774286029467,-794.0,0.00033382,30]
[408812236,1774286029492,-226.52,0.000338,120]
[408812237,1774286029516,-166.13,0.000338,120]
[408812238,1774286029543,-181.19986646,0.000339,120]
[408812239,1774286029567,-694.16155965,0.000339,120]
[408812240,1774286029589,-765.26025992,0.000339,120]
[408812241,1774286029615,-160.72851894,0.000339,120]
[408812242,1774286029643,-163.08944677,0.000339,120]
[408812243,1774286029668,-237.85,0.000343,120]
[408812244,1774286029691,-174.44,0.000343,120]
[408812245,1774286029714,-249.74,0.000348,120]
[408812246,1774286029739,-183.16,0.000348,120]
[408812247,1774286029763,-181.19986646,0.000349,120]
[408812248,1774286029786,-694.16155965,0.000349,120]
[408812249,1774286029809,-765.26025992,0.000349,120]
[408812250,1774286029831,-160.72851894,0.000349,120]
[408812251,1774286029854,-163.08944677,0.000349,120]
[408812252,1774286029877,-11316.8,0.00035,120]
[408812253,1774286029900,-262.23,0.000353,120]
[408812254,1774286029927,-192.32,0.000353,120]
[408812255,1774286029951,-275.33,0.000358,120]
[408812256,1774286029975,-201.93,0.000358,120]
[408812257,1774286029998,-181.19986646,0.000359,120]
[408812258,1774286030021,-694.16155965,0.000359,120]
[408812259,1774286030045,-765.26025992,0.000359,120]
[408812260,1774286030069,-163.08944677,0.000359,120]
[408812261,1774286030092,-2399.92,0.00036,120]
[408812262,1774286030115,-289.11,0.000363,120]
[408812263,1774286030139,-212.03,0.000363,120]
[408812264,1774286030161,-303.56,0.000368,120]
[408812265,1774286030184,-222.63,0.000368,120]
[408812266,1774286030208,-694.16155965,0.00037,120]
[408812267,1774286030232,-765.26025992,0.00037,120]
[408812268,1774286030255,-163.08944677,0.00037,120]
[408812269,1774286030278,-512.6834,0.0003726,21]
[408812270,1774286030302,-417.488,0.0003726,21]
[408812271,1774286030329,-231.454,0.0003726,21]
[408812272,1774286030352,-318.74,0.000373,120]
[408812273,1774286030375,-233.77,0.000373,120]
[408812274,1774286030397,-2399.92,0.0003744,120]
[408812275,1774286030420,-334.68,0.000378,120]
[408812276,1774286030443,-245.45,0.000378,120]
[408812277,1774286030466,-351.41,0.000383,120]
[408812278,1774286030488,-257.73,0.000383,120]
[408812279,1774286030511,-368.99,0.000388,120]
[408812280,1774286030535,-270.61,0.000388,120]
[408812281,1774286030559,-2399.92,0.00038937,120]
[408812282,1774286030583,-201.0,0.00038993,120]
[408812283,1774286030607,-1455.01,0.00039,120]
[408812284,1774286030630,-800.94,0.00039,120]
[408812285,1774286030654,-387.44,0.000393,120]
[408812286,1774286030678,-284.14,0.000393,120]
[408812287,1774286030701,-406.81,0.000398,120]
[408812288,1774286030725,-298.35,0.000398,120]
[408812289,1774286030748,-151.0,0.00039999,120]
[408812290,1774286030771,-5000.0,0.00039999,120]
[408812291,1774286030794,-151.0,0.00039999,120]
[408812292,1774286030817,-5000.0,0.00039999,120]
[408812293,1774286030839,-151.0,0.00039999,120]
[408812294,1774286030861,-5000.0,0.00039999,120]
[408812295,1774286030884,-151.0,0.00039999,120]
[408812296,1774286030907,-5000.0,0.00039999,120]
[408812297,1774286030933,-151.0,0.00039999,120]
[408812298,1774286030956,-151.0,0.00039999,120]
[408812299,1774286030979,-151.0,0.00039999,120]
[408812300,1774286031002,-151.0,0.00039999,120]
[408812301,1774286031024,-151.0,0.00039999,120]
[408812302,1774286031046,-5000.0,0.00039999,120]
[408812303,1774286031068,-151.0,0.00039999,120]
[408812304,1774286031091,-5000.0,0.00039999,120]
[408812305,1774286031114,-151.0,0.00039999,120]
[408812306,1774286031136,-5000.0,0.00039999,120]
[408812307,1774286031160,-151.0,0.00039999,120]
[408812308,1774286031182,-5000.0,0.00039999,120]
[408812309,1774286031205,-151.0,0.00039999,120]
[408812310,1774286031228,-5000.0,0.00039999,120]
[408812311,1774286031252,-151.0,0.00039999,120]
[408812312,1774286031275,-5000.0,0.00039999,120]
[408812313,1774286031298,-151.0,0.00039999,120]
[408812314,1774286031322,-5000.0,0.00039999,120]
[408812315,1774286031344,-151.0,0.00039999,120]
[408812316,1774286031367,-5000.0,0.00039999,120]
[408812317,1774286031393,-151.0,0.00039999,120]
[408812318,1774286031421,-5000.0,0.00039999,120]
[408812319,1774286031450,-151.0,0.00039999,120]
[408812320,1774286031476,-5000.0,0.00039999,120]
[408812321,1774286031500,-151.0,0.00039999,120]
[408812322,1774286031528,-5000.0,0.00039999,120]
[408812323,1774286031554,-151.0,0.00039999,120]
[408812324,1774286031580,-5000.0,0.00039999,120]
[408812325,1774286031607,-5000.0,0.00039999,120]
[408812326,1774286031634,-2000.0,0.00039999,30]
[408812327,1774286031661,-2163.18186319,0.00039999,120]
[408812328,1774286031688,-2074.0,0.00039999,30]
[408812329,1774286031715,-2150.738,0.00039999,30]
[408812330,1774286031741,-2230.315306,0.00039999,30]
[408812331,1774286031766,-2312.83697232,0.00039999,30]
[408812332,1774286031790,-1658.08503712,0.00039999,30]
[408812333,1774286031816,-500.0,0.00039999,120]
[408812334,1774286031842,-614.4478265,0.00039999,120]
[408812335,1774286031868,-3850528.62667543,0.0004,120]
[408812336,1774286049916,-5000.0,0.00013292,120]
[408812337,1774286049992,-128227.1,0.00035,120]
[408812338,1774286050033,-11316.8,0.00035,120]
[408812339,1774286050070,-128227.1,0.000364,120]
[408812340,1774286050105,-11316.8,0.000364,120]
[408812341,1774286050141,-2399.92,0.0003744,120]
[408812342,1774286050179,-128227.1,0.00037856,120]
[408812343,1774286050215,-11316.8,0.00037856,120]
[408812344,1774286050252,-3283.59,0.00037972,30]
[408812345,1774286050288,-2399.92,0.00038937,120]
[408812346,1774286050325,-800.94,0.00039,120]
[408812347,1774286050365,-128227.1,0.0003937,120]
[408812348,1774286050403,-11316.8,0.0003937,120]
[408812349,1774286050439,-3427940.03,0.0004,120]
[408812350,1774286055591,-152.63,0.000333,120]
[408812351,1774286055618,-176.48,0.000333,120]
[408812352,1774286055644,-160.27,0.000338,120]
[408812353,1774286055670,-185.31,0.000338,120]
[408812354,1774286055697,-168.28,0.000343,120]
[408812355,1774286055725,-194.57,0.000343,120]
[408812356,1774286055752,-176.7,0.000348,120]
[408812357,1774286055778,-204.3,0.000348,120]
[408812358,1774286055802,-214.52,0.000353,120]
[408812359,1774286055826,-185.53,0.000353,120]
[408812360,1774286055850,-194.81,0.000358,120]
[408812361,1774286055874,-225.24,0.000358,120]
[408812362,1774286055898,-204.55,0.000363,120]
[408812363,1774286055924,-214.78,0.000368,120]
[408812364,1774286055947,-248.33,0.000368,120]
[408812365,1774286055974,-225.52,0.000373,120]
[408812366,1774286056000,-260.75,0.000373,120]
[408812367,1774286056026,-236.79,0.000378,120]
[408812368,1774286056053,-273.77,0.000378,120]
[408812369,1774286056079,-248.63,0.000383,120]
[408812370,1774286056105,-287.47,0.000383,120]
[408812371,1774286056132,-261.07,0.000388,120]
[408812372,1774286056156,-301.85,0.000388,120]
[408812373,1774286056180,-1164.01,0.00039,120]
[408812374,1774286056205,-274.12,0.000393,120]
[408812375,1774286056229,-316.94,0.000393,120]
[408812376,1774286056252,-287.88,0.000398,120]
[408812377,1774286056278,-332.79,0.000398,120]
[408812378,1774286056303,-1512238.21004276,0.0004,120]
[408812379,1774286056332,-2480383.89995724,0.0004,120]
[408812380,1774286059862,-5000.0,0.00013292,120]
[408812381,1774286059931,-3995000.0,0.0004,120]
[408812382,1774286084642,-5000.0,0.00013401,120]
[408812383,1774286084666,-5000.0,0.00013536,120]
[408812384,1774286084711,-163.0,0.00027534,25]
[408812385,1774286084744,-155.34,0.000333,120]
[408812386,1774286084770,-163.1,0.000338,120]
[408812387,1774286084793,-171.26,0.000343,120]
[408812388,1774286084815,-179.82,0.000348,120]
[408812389,1774286084838,-188.81,0.000353,120]
[408812390,1774286084863,-198.25,0.000358,120]
[408812391,1774286084886,-208.17,0.000363,120]
[408812392,1774286084909,-218.57,0.000368,120]
[408812393,1774286084935,-229.5,0.000373,120]
[408812394,1774286084958,-240.98,0.000378,120]
[408812395,1774286084984,-253.03,0.000383,120]
[408812396,1774286085008,-265.68,0.000388,120]
[408812397,1774286085032,-278.95,0.000393,120]
[408812398,1774286085055,-292.91,0.000398,120]
[408812399,1774286085079,-151.0,0.0003998,120]
[408812400,1774286085102,-151.0,0.0003998,120]
[408812401,1774286085125,-151.0,0.0003998,120]
[408812402,1774286085149,-3986339.63,0.0004,120]
[408812403,1774286099744,-4000000.0,0.0004,120]
[408812436,1774287032371,-358.5351,0.00012366,120]
[408812463,1774287038620,-4641.4649,0.00012366,120]
[408812465,1774287038630,-5000.0,0.00012491,120]
[408812467,1774287038639,-2557.48251956,0.00013599,2]
[408812469,1774287038648,-614.0,0.00013599,2]
[408812471,1774287038657,-1005.89273523,0.00013672,2]
[408812473,1774287038667,-32258.71574959,0.00013699,2]
[408812475,1774287038676,-1556.87256012,0.00013699,2]
[408812555,1774287043754,-5000.0,0.00013562,120]
[408812556,1774287043763,-4562.8672,0.00013699,2]
[408812569,1774287046713,-1192.86385388,0.00013699,2]
[408812570,1774287046722,-1000.0,0.00013699,2]
[408812571,1774287046731,-1000.0,0.00013699,2]
[408812572,1774287046740,-300.0,0.00013945,2]
[408812573,1774287046749,-300.0,0.00013945,2]
[408812574,1774287046758,-300.0,0.00013945,2]
[408812575,1774287046767,-300.0,0.00013945,2]
[408812576,1774287046776,-300.0,0.00013945,2]
[408812577,1774287046786,-300.0,0.00013945,2]
[408812578,1774287046795,-7.13614612,0.00013945,2]
[408812579,1774287335160,153.21496276,2.1e-07,7]
[408812580,1774287335260,153.21496276,2.1e-07,7]
[408812581,1774287335365,153.21496276,2.1e-07,7]
[408812582,1774287335463,153.21496276,2.1e-07,7]
[408812583,1774287335573,153.21496276,2e-07,7]
[408812584,1774287335675,153.21496276,2e-07,7]
[408812809,1774288231577,-5000.0,0.00012094,2]
[408812810,1774288231587,-1001.32,0.00012216,2]
[408812811,1774288231599,-3998.68,0.00012216,2]
[408812812,1774288231608,-594.0,0.00012339,2]
[408812813,1774288231618,-300.0,0.00013105,2]
[408812814,1774288231628,-292.25,0.00013699,2]
[408812815,1774288231637,-1000.0,0.00013699,2]
[408812816,1774288231646,-287.84706217,0.00013743,14]
[408812817,1774288231656,-170.0113373,0.00013983,2]
[408812818,1774288231665,-268.38619284,0.00014737,2]
[408812819,1774288231676,-4383.78393154,0.000149,2]
[408812820,1774288231685,-162.980181,0.00015068,2]
[408812821,1774288231696,-2886.30998129,0.00015205,2]
[408812822,1774288231706,-385.30448161,0.00015205,2]
[408812837,1774288237599,-898.48652401,0.00015053,2]
[408812842,1774288237651,-3495.8960503,0.00015053,2]
[408812843,1774288237704,-605.61742569,0.00015053,2]
[408812844,1774288237713,-4947.39170563,0.00015205,2]
[408812845,1774288237724,-378.3118428,0.00015205,2]
[408813255,1774288244087,-568.16410002,0.00015053,2]
[408813262,1774288244141,-3282.0261826,0.00015053,2]
[408813264,1774288244152,-236.11355768,0.00015053,2]
[408813266,1774288244161,-1402.68198867,0.00015205,2]
[408813268,1774288244170,-500.0,0.00015973,2]
[408813270,1774288244178,-17819.7063431,0.00016,2]
[408813272,1774288244192,-43805.492214,0.00016,2]
[408813274,1774288244203,-6611.18857813,0.00016,2]
[408813276,1774288244212,-2237.79720465,0.00016219,2]
[408813278,1774288244222,-600.0,0.00016319,2]
[408813280,1774288244231,-797.73421733,0.00016521,2]
[408813282,1774288244239,-150.0,0.00016707,2]
[408813284,1774288244249,-500.0,0.00016973,2]
[408813286,1774288244258,-500.0,0.00016973,2]
[408813288,1774288244266,-500.0,0.00016973,2]
[408813290,1774288244275,-500.0,0.00016973,2]
[408813293,1774288244284,-500.0,0.00016973,2]
[408813295,1774288244294,-500.41988692,0.00016973,2]
[408813296,1774288244303,-500.0,0.00016973,2]
[408813298,1774288244312,-500.0,0.00016973,2]
[408813300,1774288244321,-500.0,0.00016973,2]
[408813302,1774288244330,-455.76341085,0.00016973,2]
[408813304,1774288244339,-9345.58110863,0.00017,2]
[408813306,1774288244350,-1625.79918937,0.00017,2]
[408813309,1774288244361,-99697.80037665,0.00017,2]
[408813311,1774288244375,-841.34677447,0.00017,2]
[408813422,1774288245777,-880.64643026,0.00017,2]
[408813424,1774288245788,-14138.51893515,0.00017,2]
[408813427,1774288245800,-85881.02282239,0.00017,2]
[408813429,1774288245809,-505.62951481,0.00017521,2]
[408813431,1774288245819,-401.42830168,0.00017521,2]
[408813432,1774288245828,-1000.0,0.00017521,2]
[408813434,1774288245837,-1000.0,0.00017521,2]
[408813436,1774288245847,-1000.0,0.00017521,2]
[408813438,1774288245856,-1000.0,0.00017521,2]
[408813440,1774288245865,-1000.0,0.00017521,2]
[408813442,1774288245874,-1000.0,0.00017521,2]
[408813444,1774288245883,-720.0,0.00017951,2]
[408813446,1774288245892,-1500.0,0.00018068,2]
[408813448,1774288245901,-836.21068512,0.00018068,2]
[408813450,1774288245911,-1500.0,0.00018068,2]
[408813452,1774288245921,-500.0,0.00018068,2]
[408813454,1774288245930,-1500.0,0.00018068,2]
[408813456,1774288245940,-1460.21994654,0.00018068,2]
[408813458,1774288245948,-209.79748017,0.00018219,3]
[408813460,1774288245957,-500.0,0.00018616,2]
[408813462,1774288245966,-2000.0,0.00018616,2]
[408813464,1774288245975,-475.77852977,0.00018616,2]
[408813465,1774288245984,-24620.9738787,0.00019,2]
[408813467,1774288245994,-506.57,0.00019,2]
[408813469,1774288246004,-177923.36884467,0.00019,10]
[408814504,1774288919950,-673.63780103,0.00013426,2]
[408814541,1774289431719,-4169.95178588,0.00013027,2]
[408814544,1774289431776,-612.45539063,0.00013027,2]
[408814548,1774289437883,-217.59282349,0.00013027,2]
[408814550,1774289437895,-607.0,0.00013159,2]
[408814552,1774289437924,-200.81395535,0.00013461,2]
[408814554,1774289437938,-300.0,0.00013561,2]
[408814556,1774289437951,-300.0,0.00013561,2]
[408814558,1774289437962,-829.0,0.00013561,2]
[408814560,1774289437971,-469.46029578,0.00013562,2]
[408814562,1774289437985,-30.53970422,0.00013562,2]
[408814564,1774289438019,-241.93579206,0.00013562,2]
[408814566,1774289438028,-1000.0,0.00013699,2]
[408814568,1774289438037,-2150.738,0.00015743,2]
[408814570,1774289438047,-2230.315306,0.00016291,2]
[408814572,1774289438056,-2312.83697232,0.00016839,2]
[408814574,1774289438065,-162.132451,0.0001687,2]
[408814576,1774289438074,-2398.4119403,0.00017387,2]
[408814578,1774289438083,-456.0578392,0.00017664,2]
[408814580,1774289438093,-1044.8325973,0.00017664,2]
[408814582,1774289438102,-397.3492242,0.00017664,2]
[408814584,1774289438111,-163.0,0.00017671,3]
[408814586,1774289438120,-546.1306229,0.00017688,2]
[408814588,1774289438129,-3656.301807,0.00017884,2]
[408814590,1774289438138,-2487.15318209,0.00017935,2]
[408814592,1774289438147,-309.60002583,0.00018483,2]
[408814594,1774289438158,-536.9198889,0.00018483,2]
[408814596,1774289438168,-314.4491111,0.00019,10]
[408814598,1774289438178,-276822.00000001,0.00019,10]
[408814985,1774289444318,-2483.11084063,0.00019,10]
[408814987,1774289444427,-12627.66902161,0.00019,10]
[408815001,1774289446013,-5914.82565904,0.00019,10]
[408815002,1774290562135,-612.34176733,7.918e-05,2]
[408815010,1774290631919,-1592.00772503,7.683e-05,2]
[408815011,1774290631929,-742.09649886,7.761e-05,2]
[408815012,1774290631941,-1241.55746956,7.761e-05,2]
[408815013,1774290631950,-529.0,7.761e-05,2]
[408815014,1774290631960,-5000.0,7.839e-05,2]
[408815015,1774290631969,-166.8623543,9.207e-05,2]
[408815016,1774290631979,-400.97868007,0.00010462,2]
[408815017,1774290631989,-300.0,0.00011984,2]
[408815018,1774290631998,-420.0,0.00013156,2]
[408815020,1774290632008,-1000.0,0.00013699,2]
[408815022,1774290632017,-659.544071,0.00013978,2]
[408815024,1774290632027,-587.0,0.00014443,2]
[408815025,1774290632036,-659.544071,0.00014566,2]
[408815026,1774290632045,-457.98094888,0.000149,2]
[408815027,1774290632055,-457.98094886,0.000149,2]
[408815028,1774290632064,-457.98094886,0.000149,2]
[408815029,1774290632074,-356.09445904,0.00015,2]
[408815030,1774290632083,-659.544071,0.00015155,2]
[408815031,1774290632092,-181.67799824,0.00015196,2]
[408815032,1774290632102,-10000.0,0.00015205,2]
[408815033,1774290632111,-659.544071,0.00015743,2]
[408815034,1774290632121,-5322.47157087,0.00015766,2]
[408815035,1774290632130,-823.0,0.00015855,2]
[408815036,1774290632139,-270.30931232,0.00015866,2]
[408815037,1774290632149,-162.380719,0.00015866,2]
[408815038,1774290632158,-151.0,0.00015866,2]
[408815039,1774290632168,-151.0,0.00015866,2]
[408815040,1774290632177,-151.0,0.00015866,2]
[408815041,1774290632187,-192.87658601,0.00015866,2]
[408815042,1774290632196,-151.0,0.00015866,2]
[408815043,1774290632206,-151.0,0.00015866,2]
[408815044,1774290632216,-151.0,0.00015866,2]
[408815045,1774290632225,-151.0,0.00015866,2]
[408815046,1774290632236,-1957.856,0.00015866,2]
[408815047,1774290632246,-151.0,0.00015866,2]
[408815048,1774290632255,-151.0,0.00015866,2]
[408815049,1774290632265,-537.6845,0.00015866,2]
[408815050,1774290632274,-151.0,0.00015866,2]
[408815051,1774290632283,-156.587,0.00015866,2]
[408815052,1774290632293,-151.0,0.00015866,2]
[408815053,1774290632302,-151.0,0.00015866,2]
[408815054,1774290632313,-151.0,0.00015866,2]
[408815055,1774290632322,-151.0,0.00015866,2]
[408815056,1774290632332,-6.65640747,0.00015866,2]
[408815077,1774290638085,-5000.0,0.00015708,2]
[408815078,1774290638095,-144.34359253,0.00015866,2]
[408815079,1774290638104,-151.0,0.00015866,2]
[408815080,1774290638114,-151.0,0.00015866,2]
[408815081,1774290638127,-151.0,0.00015866,2]
[408815082,1774290638136,-2150.738,0.00015866,2]
[408815083,1774290638146,-2030.296672,0.00015921,2]
[408815084,1774290638155,-2105.41764886,0.00015976,2]
[408815085,1774290638166,-321.0,0.00015976,2]
[408815086,1774290638175,-86074.0,0.00016,7]
[408815087,1774290638185,-2183.31810187,0.00016031,2]
[408815088,1774290638194,-2264.10087164,0.00016086,2]
[408815089,1774290638204,-2347.87260389,0.00016141,2]
[408815090,1774290638214,-2444.55990705,0.00016196,2]
[408815091,1774290638224,-659.544071,0.00016331,2]
[408815092,1774290638237,-557.5788265,0.00016414,2]
[408815093,1774290638246,-659.544071,0.0001692,2]
[408815094,1774290638255,-578.20924308,0.00016962,2]
[408815095,1774290638265,-168.3888056,0.00017235,2]
[408815096,1774290638275,-1152.0,0.00017406,2]
[408815097,1774290638284,-313.61019065,0.0001751,2]
[408815098,1774290638294,-3588.0,0.00017936,2]
[408815099,1774290638303,-5000.0,0.00018018,2]
[408815100,1774290638316,-5322.47157084,0.0001802,2]
[408815101,1774290638325,-537.6845,0.00018218,3]
[408815102,1774290638336,-557.5788265,0.00018218,3]
[408815103,1774290638346,-578.20924308,0.00018218,3]
[408815104,1774290638355,-599.60298507,0.00018218,3]
[408815105,1774290638364,-621.78829552,0.00018218,3]
[408815106,1774290638373,-644.79446246,0.00018218,3]
[408815107,1774290638382,-668.65185757,0.00018218,3]
[408815108,1774290638391,-693.3919763,0.00018218,3]
[408815109,1774290638400,-719.04747942,0.00018218,3]
[408815110,1774290638409,-745.65223616,0.00018218,3]
[408815111,1774290638418,-773.2413689,0.00018218,3]
[408815112,1774290638428,-801.85129955,0.00018218,3]
[408815113,1774290638438,-831.51979763,0.00018218,3]
[408815114,1774290638447,-862.28603014,0.00018218,3]
[408815115,1774290638456,-894.19061326,0.00018218,3]
[408815116,1774290638465,-927.27566595,0.00018218,3]
[408815117,1774290638474,-961.58486559,0.00018218,3]
[408815118,1774290638483,-3588.0,0.00018243,2]
[408815119,1774290638493,-3588.0,0.00018271,2]
[408815120,1774290638504,-1000.0,0.00018361,2]
[408815121,1774290638514,-500.0,0.00018418,2]
[408815122,1774290638523,-500.0,0.00018418,2]
[408815123,1774290638533,-500.0,0.00018418,2]
[408815124,1774290638542,-651.4846913,0.00018418,2]
[408815125,1774290638552,-500.0,0.00018418,2]
[408815126,1774290638560,-500.0,0.00018418,2]
[408815127,1774290638569,-200.42443502,0.00018418,2]
[408815128,1774290638578,-503.61640435,0.00018418,2]
[408815129,1774290638587,-3588.0,0.00018419,2]
[408815130,1774290638595,-3588.0,0.00018433,2]
[408815131,1774290638604,-3588.0,0.0001845,2]
[408815132,1774290638613,-347.0,0.00018586,2]
[408815133,1774290638622,-218.04310439,0.00018604,2]
[408815134,1774290638631,-3588.0,0.00018708,2]
[408815135,1774290638640,-412.0,0.00018744,2]
[408815136,1774290638649,-3588.0,0.00018755,2]
[408815137,1774290638659,-9079.17678234,0.00018772,2]
[408815138,1774290638668,-1705.088206,0.00018811,2]
[408815139,1774290638677,-1705.088206,0.00018811,2]
[408815140,1774290638686,-3537.2852287,0.00018811,2]
[408815141,1774290638695,-3588.0,0.00018821,2]
[408815142,1774290638708,-200.0,0.00018871,2]
[408815143,1774290638717,-979679.87357205,0.00018872,2]
[408815155,1774290640482,-317.59674703,0.00018872,2]
[408815703,1774291832076,-334.45923056,0.00011954,2]
[408815705,1774291832088,-312.5866743,0.00011954,2]
[408815707,1774291832097,-3763.20505184,0.00012054,2]
[408815709,1774291832108,-1236.79494816,0.00012054,2]
[408815711,1774291832117,-43.3226787,0.00012176,2]
[408815713,1774291832128,-286.15980939,0.00012176,2]
[408815715,1774291832137,-229.51751191,0.00012176,2]
[408815773,1774291838159,-362.48248809,0.00012176,2]
[408815774,1774291838171,-1000.0,0.00013699,2]
[408815775,1774291838182,-162.132451,0.00016569,2]
[408815776,1774291838191,-300.0,0.00016837,2]
[408815777,1774291838200,-300.0,0.00016837,2]
[408815778,1774291838210,-300.0,0.00016837,2]
[408815779,1774291838219,-1200.0,0.00016837,2]